[Event "Titled Tuesday Blitz July 25 Early 2023"]
[White "Nurgaliyeva, Zarina"]
[Black "Thiel, Thomas"]
[WhiteFideId "13730096"]
[BlackFideId "4615964"]
[WhiteElo "2608"]
[BlackElo "2275"]
[Result "1-0"]
[Round "6"]
[TimeControl "180+2"]
[Date "2023.07.25"]
[WhiteClock "0:01:42"]
[BlackClock "0:01:25"]
[Board "101"]

1. e4 {[%clk 0:03:00]}  d5 {[%clk 0:02:59]} 2. exd5 {[%clk 0:02:49]}  Nf6 {[%clk 0:02:58]} 3. d4 {[%clk 0:02:47]}  Nxd5 {[%clk 0:02:58]} 4. c4 {[%clk 0:02:45]}  Nb6 {[%clk 0:02:56]} 5. Nf3 {[%clk 0:02:45]}  g6 {[%clk 0:02:55]} 6. c5 {[%clk 0:02:41]}  Nd5 {[%clk 0:02:53]} 7. Nc3 {[%clk 0:02:41]}  Bg7 {[%clk 0:02:53]} 8. Bc4 {[%clk 0:02:41]}  Nxc3 {[%clk 0:02:53]} 9. bxc3 {[%clk 0:02:41]}  O-O {[%clk 0:02:51]} 10. O-O {[%clk 0:02:41]}  Nc6 {[%clk 0:02:51]} 11. Re1 {[%clk 0:02:34]}  Bg4 {[%clk 0:02:50]} 12. Bg5 {[%clk 0:02:32]}  h6 {[%clk 0:02:47]} 13. Bh4 {[%clk 0:02:30]}  g5 {[%clk 0:02:47]} 14. Bg3 {[%clk 0:02:30]}  e5 {[%clk 0:02:47]} 15. d5 {[%clk 0:02:25]}  Na5 {[%clk 0:02:43]} 16. Bb3 {[%clk 0:02:22]}  Nxb3 {[%clk 0:02:22]} 17. Qxb3 {[%clk 0:02:13]}  Bxf3 {[%clk 0:02:20]} 18. gxf3 {[%clk 0:02:14]}  b6 {[%clk 0:01:59]} 19. cxb6 {[%clk 0:02:06]}  axb6 {[%clk 0:01:59]} 20. Bxe5 {[%clk 0:02:02]}  Bxe5 {[%clk 0:01:59]} 21. Rxe5 {[%clk 0:02:03]}  Qd6 {[%clk 0:01:59]} 22. Rae1 {[%clk 0:02:00]}  Ra3 {[%clk 0:01:58]} 23. Qc2 {[%clk 0:01:56]}  Rfa8 {[%clk 0:01:51]} 24. Re8+ {[%clk 0:01:50]}  Rxe8 {[%clk 0:01:37]} 25. Rxe8+ {[%clk 0:01:51]}  Kg7 {[%clk 0:01:36]} 26. Qe4 {[%clk 0:01:44]}  Rxc3 {[%clk 0:01:31]} 27. Qd4+ {[%clk 0:01:42]}  Qf6 {[%clk 0:01:28]} 28. Rg8+ {[%clk 0:01:41]}  Kxg8 {[%clk 0:01:25]} 29. Qxf6 {[%clk 0:01:42]} 1-0


[Site "https://www.chess.com"]

[Event "Titled Tuesday Blitz July 25 Early 2023"]
[White "Smietanska, Wiktoria"]
[Black "Sipila, Vilka"]
[WhiteFideId "21869359"]
[BlackFideId "505455"]
[WhiteElo "2252"]
[BlackElo "2606"]
[Result "0-1"]
[Round "6"]
[TimeControl "180+2"]
[Date "2023.07.25"]
[WhiteClock "0:00:00"]
[BlackClock "0:01:56"]
[Board "102"]

1. c4 {[%clk 0:03:00]}  f5 {[%clk 0:02:59]} 2. Nc3 {[%clk 0:03:00]}  Nf6 {[%clk 0:03:00]} 3. g3 {[%clk 0:03:00]}  g6 {[%clk 0:03:00]} 4. Bg2 {[%clk 0:03:00]}  Bg7 {[%clk 0:03:01]} 5. e3 {[%clk 0:03:00]}  O-O {[%clk 0:03:01]} 6. Nge2 {[%clk 0:03:01]}  e5 {[%clk 0:03:01]} 7. O-O {[%clk 0:03:01]}  d6 {[%clk 0:02:54]} 8. d3 {[%clk 0:03:01]}  c6 {[%clk 0:02:53]} 9. b4 {[%clk 0:03:01]}  Nh5 {[%clk 0:02:50]} 10. Qb3 {[%clk 0:02:51]}  f4 {[%clk 0:02:50]} 11. exf4 {[%clk 0:02:48]}  exf4 {[%clk 0:02:50]} 12. Nxf4 {[%clk 0:02:45]}  Nxf4 {[%clk 0:02:49]} 13. Bxf4 {[%clk 0:02:44]}  Rxf4 {[%clk 0:02:48]} 14. gxf4 {[%clk 0:02:43]}  Nd7 {[%clk 0:02:46]} 15. c5+ {[%clk 0:02:41]}  d5 {[%clk 0:02:46]} 16. Nxd5 {[%clk 0:02:23]}  cxd5 {[%clk 0:02:47]} 17. Qxd5+ {[%clk 0:02:21]}  Kh8 {[%clk 0:02:47]} 18. Rac1 {[%clk 0:02:18]}  Qf8 {[%clk 0:02:42]} 19. c6 {[%clk 0:02:08]}  bxc6 {[%clk 0:02:43]} 20. Qxc6 {[%clk 0:01:55]}  Rb8 {[%clk 0:02:43]} 21. Qc7 {[%clk 0:01:30]}  Bd4 {[%clk 0:02:35]} 22. Rc4 {[%clk 0:01:15]}  Bb6 {[%clk 0:02:35]} 23. Qc6 {[%clk 0:01:10]}  Nf6 {[%clk 0:02:34]} 24. d4 {[%clk 0:00:12]}  Bd7 {[%clk 0:02:31]} 25. Qf3 {[%clk 0:00:05]}  Bb5 {[%clk 0:02:31]} 26. Rfc1 {[%clk 0:00:05]}  Bxc4 {[%clk 0:02:32]} 27. Rxc4 {[%clk 0:00:06]}  Rd8 {[%clk 0:02:31]} 28. Qc3 {[%clk 0:00:05]}  Qd6 {[%clk 0:02:27]} 29. d5 {[%clk 0:00:05]}  Kg7 {[%clk 0:02:15]} 30. a4 {[%clk 0:00:05]}  Rd7 {[%clk 0:02:06]} 31. a5 {[%clk 0:00:05]}  Bd8 {[%clk 0:02:06]} 32. b5 {[%clk 0:00:03]}  Kh6 {[%clk 0:02:01]} 33. Rc8 {[%clk 0:00:02]}  Nxd5 {[%clk 0:01:58]} 34. Qh3+ {[%clk 0:00:01]}  Kg7 {[%clk 0:01:57]} 35. Bxd5 {[%clk 0:00:01]}  Qxd5 {[%clk 0:01:57]} 36. Qc3+ {[%clk 0:00:00]}  Bf6 {[%clk 0:01:56]} 0-1


[Site "https://www.chess.com"]

[Event "Titled Tuesday Blitz July 25 Early 2023"]
[White "Castaneda, Jhon David"]
[Black "Mishra, Manoj"]
[WhiteFideId "4405048"]
[BlackFideId "5006007"]
[WhiteElo "2602"]
[BlackElo "2200"]
[Result "0-1"]
[Round "6"]
[TimeControl "180+2"]
[Date "2023.07.25"]
[WhiteClock "0:00:00"]
[BlackClock "0:00:10"]
[Board "103"]

1. d4 {[%clk 0:02:55]}  Nf6 {[%clk 0:02:59]} 2. Nf3 {[%clk 0:02:55]}  g6 {[%clk 0:02:57]} 3. c4 {[%clk 0:02:56]}  Bg7 {[%clk 0:02:57]} 4. Nc3 {[%clk 0:02:56]}  O-O {[%clk 0:02:57]} 5. e4 {[%clk 0:02:56]}  d6 {[%clk 0:02:57]} 6. Be2 {[%clk 0:02:56]}  e5 {[%clk 0:02:57]} 7. Be3 {[%clk 0:02:56]}  exd4 {[%clk 0:02:53]} 8. Nxd4 {[%clk 0:02:57]}  c6 {[%clk 0:02:52]} 9. Nc2 {[%clk 0:02:51]}  Re8 {[%clk 0:02:36]} 10. f3 {[%clk 0:02:49]}  Nbd7 {[%clk 0:02:28]} 11. Qxd6 {[%clk 0:02:46]}  Nh5 {[%clk 0:02:28]} 12. g4 {[%clk 0:02:35]}  Be5 {[%clk 0:02:23]} 13. Qd2 {[%clk 0:02:34]}  Qh4+ {[%clk 0:02:11]} 14. Bf2 {[%clk 0:02:30]}  Bg3 {[%clk 0:02:10]} 15. Bd3 {[%clk 0:02:29]}  Ne5 {[%clk 0:01:45]} 16. Bxg3 {[%clk 0:01:26]}  Nxg3 {[%clk 0:01:32]} 17. O-O-O {[%clk 0:01:22]}  Nxh1 {[%clk 0:01:28]} 18. Rxh1 {[%clk 0:01:18]}  Rd8 {[%clk 0:01:22]} 19. Ne1 {[%clk 0:01:18]}  Be6 {[%clk 0:01:12]} 20. Qe2 {[%clk 0:01:14]}  Nxd3+ {[%clk 0:01:11]} 21. Nxd3 {[%clk 0:01:10]}  Bxc4 {[%clk 0:01:11]} 22. Qf2 {[%clk 0:01:11]}  Qh6+ {[%clk 0:01:07]} 23. g5 {[%clk 0:01:05]}  Qxg5+ {[%clk 0:01:06]} 24. f4 {[%clk 0:01:05]}  Qe7 {[%clk 0:00:59]} 25. Ne5 {[%clk 0:01:05]}  Bd3 {[%clk 0:00:52]} 26. Qe3 {[%clk 0:01:03]}  Bb5 {[%clk 0:00:39]} 27. Rg1 {[%clk 0:00:51]}  f6 {[%clk 0:00:39]} 28. Nxg6 {[%clk 0:00:28]}  hxg6 {[%clk 0:00:38]} 29. Rxg6+ {[%clk 0:00:29]}  Kf7 {[%clk 0:00:34]} 30. f5 {[%clk 0:00:17]}  Rg8 {[%clk 0:00:30]} 31. Qg3 {[%clk 0:00:15]}  Qe5 {[%clk 0:00:25]} 32. Qh4 {[%clk 0:00:12]}  Rxg6 {[%clk 0:00:19]} 33. fxg6+ {[%clk 0:00:12]}  Kxg6 {[%clk 0:00:19]} 34. Kc2 {[%clk 0:00:12]}  Qg5 {[%clk 0:00:15]} 35. Qh3 {[%clk 0:00:09]}  Rd8 {[%clk 0:00:15]} 36. Kb3 {[%clk 0:00:07]}  Rd2 {[%clk 0:00:13]} 37. Qe6 {[%clk 0:00:05]}  c5 {[%clk 0:00:10]} 38. Nxb5 {[%clk 0:00:03]}  c4+ {[%clk 0:00:10]} 39. Qxc4 {[%clk 0:00:02]}  Qe3+ {[%clk 0:00:10]} 40. Nc3 {[%clk 0:00:00]}  Qb6+ {[%clk 0:00:10]} 0-1


[Site "https://www.chess.com"]

[Event "Titled Tuesday Blitz July 25 Early 2023"]
[White "LangesNasenhaar"]
[Black "Molina, Roberto Junio Brito"]
[BlackFideId "2109450"]
[WhiteElo "2489"]
[BlackElo "2864"]
[Result "0-1"]
[Round "6"]
[TimeControl "180+2"]
[Date "2023.07.25"]
[WhiteClock "0:00:00"]
[BlackClock "0:00:26"]
[Board "104"]

1. d4 {[%clk 0:03:00]}  Nf6 {[%clk 0:02:57]} 2. Nc3 {[%clk 0:03:01]}  d5 {[%clk 0:02:57]} 3. Bf4 {[%clk 0:03:00]}  a6 {[%clk 0:02:56]} 4. e3 {[%clk 0:03:00]}  c5 {[%clk 0:02:55]} 5. dxc5 {[%clk 0:02:58]}  Nc6 {[%clk 0:02:55]} 6. Nf3 {[%clk 0:02:52]}  Bg4 {[%clk 0:02:53]} 7. h3 {[%clk 0:02:49]}  Bxf3 {[%clk 0:02:47]} 8. Qxf3 {[%clk 0:02:49]}  e6 {[%clk 0:02:41]} 9. Bg5 {[%clk 0:02:21]}  Bxc5 {[%clk 0:02:37]} 10. Bxf6 {[%clk 0:02:20]}  Qxf6 {[%clk 0:02:34]} 11. Qxf6 {[%clk 0:02:19]}  gxf6 {[%clk 0:02:35]} 12. Bd3 {[%clk 0:02:14]}  f5 {[%clk 0:02:30]} 13. O-O {[%clk 0:02:05]}  O-O-O {[%clk 0:02:25]} 14. a3 {[%clk 0:02:00]}  Be7 {[%clk 0:02:22]} 15. Ne2 {[%clk 0:01:52]}  b5 {[%clk 0:02:18]} 16. c3 {[%clk 0:01:50]}  Ne5 {[%clk 0:02:16]} 17. Rfd1 {[%clk 0:01:45]}  Kc7 {[%clk 0:02:15]} 18. a4 {[%clk 0:01:42]}  Kb6 {[%clk 0:02:08]} 19. Nd4 {[%clk 0:01:35]}  b4 {[%clk 0:02:02]} 20. cxb4 {[%clk 0:01:33]}  Bxb4 {[%clk 0:02:03]} 21. Nf3 {[%clk 0:01:23]}  Nxf3+ {[%clk 0:01:50]} 22. gxf3 {[%clk 0:01:23]}  Rhg8+ {[%clk 0:01:49]} 23. Kf1 {[%clk 0:01:23]}  a5 {[%clk 0:01:45]} 24. Ke2 {[%clk 0:01:23]}  Rg2 {[%clk 0:01:36]} 25. Rg1 {[%clk 0:01:20]}  Rdg8 {[%clk 0:01:35]} 26. Rxg2 {[%clk 0:01:17]}  Rxg2 {[%clk 0:01:36]} 27. Rc1 {[%clk 0:01:08]}  Kb7 {[%clk 0:01:33]} 28. Rh1 {[%clk 0:01:05]}  h5 {[%clk 0:01:26]} 29. f4 {[%clk 0:01:05]}  Rg8 {[%clk 0:01:21]} 30. Rc1 {[%clk 0:01:01]}  Bd6 {[%clk 0:01:14]} 31. Bb5 {[%clk 0:00:54]}  Be7 {[%clk 0:01:12]} 32. Kf3 {[%clk 0:00:44]}  Bf6 {[%clk 0:01:11]} 33. b3 {[%clk 0:00:43]}  Be7 {[%clk 0:01:06]} 34. Be2 {[%clk 0:00:41]}  h4 {[%clk 0:01:05]} 35. Bb5 {[%clk 0:00:36]}  Ba3 {[%clk 0:01:02]} 36. Ra1 {[%clk 0:00:28]}  Bb2 {[%clk 0:00:58]} 37. Rb1 {[%clk 0:00:27]}  Bc3 {[%clk 0:00:55]} 38. Rd1 {[%clk 0:00:21]}  Kb6 {[%clk 0:00:53]} 39. Rd3 {[%clk 0:00:18]}  Bf6 {[%clk 0:00:52]} 40. Rd1 {[%clk 0:00:17]}  Rc8 {[%clk 0:00:50]} 41. Rg1 {[%clk 0:00:12]}  Rc2 {[%clk 0:00:43]} 42. Rg8 {[%clk 0:00:11]}  Bc3 {[%clk 0:00:43]} 43. Rg1 {[%clk 0:00:06]}  Kc5 {[%clk 0:00:40]} 44. Rg8 {[%clk 0:00:05]}  Kb4 {[%clk 0:00:39]} 45. Rf8 {[%clk 0:00:04]}  Be1 {[%clk 0:00:39]} 46. Be2 {[%clk 0:00:04]}  Rc7 {[%clk 0:00:38]} 47. Rb8+ {[%clk 0:00:03]}  Ka3 {[%clk 0:00:38]} 48. Rb5 {[%clk 0:00:02]}  Bb4 {[%clk 0:00:38]} 49. Rb6 {[%clk 0:00:02]}  Kxb3 {[%clk 0:00:38]} 50. Bb5 {[%clk 0:00:03]}  Kc3 {[%clk 0:00:37]} 51. Rb8 {[%clk 0:00:03]}  Kd2 {[%clk 0:00:37]} 52. Rh8 {[%clk 0:00:02]}  Ke1 {[%clk 0:00:37]} 53. Rxh4 {[%clk 0:00:02]}  Rc2 {[%clk 0:00:38]} 54. Rh7 {[%clk 0:00:02]}  Rxf2+ {[%clk 0:00:38]} 55. Kg3 {[%clk 0:00:03]}  d4 {[%clk 0:00:26]} 56. exd4 {[%clk 0:00:02]}  Bd6 {[%clk 0:00:26]} 57. Rxf7 {[%clk 0:00:00]}  Bxf4+ {[%clk 0:00:26]} 0-1


[Site "https://www.chess.com"]

[Event "Titled Tuesday Blitz July 25 Early 2023"]
[White "Tologon tegin, Semetei"]
[Black "Estrada Nieto, Julian"]
[WhiteFideId "13800574"]
[BlackFideId "5101018"]
[WhiteElo "2587"]
[BlackElo "2453"]
[Result "0-1"]
[Round "6"]
[TimeControl "180+2"]
[Date "2023.07.25"]
[WhiteClock "0:00:00"]
[BlackClock "0:00:58"]
[Board "110"]

1. b3 {[%clk 0:02:35]}  d5 {[%clk 0:02:59]} 2. Bb2 {[%clk 0:02:33]}  Nf6 {[%clk 0:03:00]} 3. e3 {[%clk 0:02:33]}  Bg4 {[%clk 0:03:00]} 4. Be2 {[%clk 0:02:33]}  Bxe2 {[%clk 0:03:00]} 5. Qxe2 {[%clk 0:02:33]}  Nbd7 {[%clk 0:02:57]} 6. f4 {[%clk 0:02:33]}  c6 {[%clk 0:02:57]} 7. Nf3 {[%clk 0:02:34]}  e6 {[%clk 0:02:58]} 8. d3 {[%clk 0:02:34]}  Bd6 {[%clk 0:02:58]} 9. Nbd2 {[%clk 0:02:34]}  O-O {[%clk 0:02:58]} 10. g4 {[%clk 0:02:34]}  Qe7 {[%clk 0:02:48]} 11. g5 {[%clk 0:02:28]}  Ne8 {[%clk 0:02:48]} 12. h4 {[%clk 0:02:28]}  Ba3 {[%clk 0:02:46]} 13. Bd4 {[%clk 0:01:51]}  Nd6 {[%clk 0:02:30]} 14. h5 {[%clk 0:01:27]}  Nb5 {[%clk 0:02:08]} 15. h6 {[%clk 0:01:16]}  g6 {[%clk 0:02:05]} 16. Bg7 {[%clk 0:01:15]}  Rfc8 {[%clk 0:01:47]} 17. c4 {[%clk 0:01:11]}  Nd6 {[%clk 0:01:46]} 18. e4 {[%clk 0:01:07]}  Ne8 {[%clk 0:01:40]} 19. exd5 {[%clk 0:00:44]}  exd5 {[%clk 0:01:39]} 20. cxd5 {[%clk 0:00:45]}  cxd5 {[%clk 0:01:31]} 21. Qxe7 {[%clk 0:00:44]}  Bxe7 {[%clk 0:01:31]} 22. Ke2 {[%clk 0:00:43]}  Nxg7 {[%clk 0:01:27]} 23. hxg7 {[%clk 0:00:41]}  Kxg7 {[%clk 0:01:27]} 24. Nd4 {[%clk 0:00:34]}  Re8 {[%clk 0:01:20]} 25. Kf1 {[%clk 0:00:27]}  Bb4 {[%clk 0:01:18]} 26. N2f3 {[%clk 0:00:26]}  Re3 {[%clk 0:01:14]} 27. Rd1 {[%clk 0:00:26]}  Bc5 {[%clk 0:01:10]} 28. Kf2 {[%clk 0:00:16]}  Rae8 {[%clk 0:01:05]} 29. Kg2 {[%clk 0:00:13]}  Nf8 {[%clk 0:01:03]} 30. Rd2 {[%clk 0:00:11]}  Ne6 {[%clk 0:01:02]} 31. Nxe6+ {[%clk 0:00:08]}  R8xe6 {[%clk 0:01:03]} 32. Rc1 {[%clk 0:00:06]}  Rxf3 {[%clk 0:00:58]} 33. Kxf3 {[%clk 0:00:05]}  Be3 {[%clk 0:00:58]} 34. Rcc2 {[%clk 0:00:02]}  Bxd2 {[%clk 0:00:58]} 35. Rxd2 {[%clk 0:00:00]}  d4 {[%clk 0:00:58]} 0-1


[Site "https://www.chess.com"]

[Event "Titled Tuesday Blitz July 25 Early 2023"]
[White "Valgmae, Toomas"]
[Black "Trifan, Andrei Ioan"]
[WhiteFideId "4502523"]
[BlackFideId "12967068"]
[WhiteElo "2438"]
[BlackElo "2572"]
[Result "0-1"]
[Round "6"]
[TimeControl "180+2"]
[Date "2023.07.25"]
[WhiteClock "0:01:18"]
[BlackClock "0:00:42"]
[Board "112"]

1. d4 {[%clk 0:03:00]}  Nf6 {[%clk 0:02:58]} 2. c4 {[%clk 0:03:00]}  g6 {[%clk 0:02:56]} 3. Nc3 {[%clk 0:03:00]}  Bg7 {[%clk 0:02:56]} 4. e4 {[%clk 0:03:00]}  O-O {[%clk 0:02:56]} 5. f3 {[%clk 0:03:00]}  d6 {[%clk 0:02:53]} 6. Be3 {[%clk 0:03:00]}  a5 {[%clk 0:02:52]} 7. Qd2 {[%clk 0:02:59]}  e5 {[%clk 0:02:51]} 8. Nge2 {[%clk 0:02:58]}  exd4 {[%clk 0:02:49]} 9. Nxd4 {[%clk 0:02:58]}  Nc6 {[%clk 0:02:50]} 10. Be2 {[%clk 0:02:57]}  Re8 {[%clk 0:02:47]} 11. O-O {[%clk 0:02:56]}  Nd7 {[%clk 0:02:47]} 12. Rad1 {[%clk 0:02:55]}  Nde5 {[%clk 0:02:45]} 13. Nd5 {[%clk 0:02:52]}  Be6 {[%clk 0:02:38]} 14. Bg5 {[%clk 0:02:47]}  f6 {[%clk 0:02:31]} 15. Nxe6 {[%clk 0:02:46]}  Rxe6 {[%clk 0:02:31]} 16. Be3 {[%clk 0:02:45]}  Re8 {[%clk 0:02:29]} 17. f4 {[%clk 0:02:37]}  Nd7 {[%clk 0:02:25]} 18. Bf3 {[%clk 0:02:37]}  Nc5 {[%clk 0:02:23]} 19. Qc2 {[%clk 0:02:28]}  Qc8 {[%clk 0:02:16]} 20. Rfe1 {[%clk 0:02:25]}  Nb4 {[%clk 0:02:12]} 21. Nxb4 {[%clk 0:02:22]}  axb4 {[%clk 0:02:13]} 22. b3 {[%clk 0:02:13]}  Ra6 {[%clk 0:01:58]} 23. Bd4 {[%clk 0:02:08]}  Qa8 {[%clk 0:01:54]} 24. Rd2 {[%clk 0:02:05]}  Ne6 {[%clk 0:01:51]} 25. Be3 {[%clk 0:02:00]}  f5 {[%clk 0:01:47]} 26. exf5 {[%clk 0:01:57]}  Nd4 {[%clk 0:01:47]} 27. Qd1 {[%clk 0:01:48]}  Nxf5 {[%clk 0:01:45]} 28. Bf2 {[%clk 0:01:46]}  c5 {[%clk 0:01:03]} 29. Rde2 {[%clk 0:01:30]}  Rxe2 {[%clk 0:00:59]} 30. Qxe2 {[%clk 0:01:30]}  Rxa2 {[%clk 0:00:45]} 31. Qe6+ {[%clk 0:01:24]}  Kh8 {[%clk 0:00:45]} 32. Qxd6 {[%clk 0:01:18]}  Nxd6 {[%clk 0:00:42]} 0-1


[Site "https://www.chess.com"]

[Event "Titled Tuesday Blitz July 25 Early 2023"]
[White "ZugZwang1201"]
[Black "NovoselovRoman"]
[WhiteElo "2431"]
[BlackElo "2561"]
[Result "1-0"]
[Round "6"]
[TimeControl "180+2"]
[Date "2023.07.25"]
[WhiteClock "0:00:15"]
[BlackClock "0:00:00"]
[Board "115"]

1. e4 {[%clk 0:03:00]}  c6 {[%clk 0:03:00]} 2. d4 {[%clk 0:03:00]}  d5 {[%clk 0:03:00]} 3. Nc3 {[%clk 0:03:01]}  dxe4 {[%clk 0:03:00]} 4. Nxe4 {[%clk 0:03:02]}  Nf6 {[%clk 0:03:00]} 5. Ng3 {[%clk 0:02:52]}  h5 {[%clk 0:02:58]} 6. h4 {[%clk 0:02:38]}  g6 {[%clk 0:02:53]} 7. Bg5 {[%clk 0:02:36]}  Bg7 {[%clk 0:02:54]} 8. Qd2 {[%clk 0:02:36]}  Be6 {[%clk 0:02:46]} 9. N1e2 {[%clk 0:02:33]}  Nd5 {[%clk 0:02:04]} 10. c4 {[%clk 0:02:28]}  Nb6 {[%clk 0:02:04]} 11. b3 {[%clk 0:02:26]}  a5 {[%clk 0:02:02]} 12. Rd1 {[%clk 0:02:23]}  a4 {[%clk 0:01:53]} 13. Nf4 {[%clk 0:02:23]}  Qd7 {[%clk 0:01:51]} 14. Nxe6 {[%clk 0:02:15]}  Qxe6+ {[%clk 0:01:50]} 15. Be2 {[%clk 0:02:16]}  N8d7 {[%clk 0:01:44]} 16. O-O {[%clk 0:02:08]}  f6 {[%clk 0:01:25]} 17. Be3 {[%clk 0:01:43]}  O-O {[%clk 0:01:16]} 18. Qc2 {[%clk 0:01:28]}  f5 {[%clk 0:01:03]} 19. Bf4 {[%clk 0:01:28]}  Qf6 {[%clk 0:00:55]} 20. Rfe1 {[%clk 0:01:25]}  Qxh4 {[%clk 0:00:51]} 21. Bc7 {[%clk 0:01:20]}  Rac8 {[%clk 0:00:40]} 22. Bxb6 {[%clk 0:01:09]}  Nxb6 {[%clk 0:00:38]} 23. bxa4 {[%clk 0:01:04]}  Bxd4 {[%clk 0:00:35]} 24. Nh1 {[%clk 0:00:57]}  c5 {[%clk 0:00:29]} 25. a5 {[%clk 0:00:55]}  Nd7 {[%clk 0:00:29]} 26. g3 {[%clk 0:00:53]}  Qf6 {[%clk 0:00:27]} 27. Bf3 {[%clk 0:00:51]}  Rc7 {[%clk 0:00:23]} 28. Rb1 {[%clk 0:00:49]}  Qa6 {[%clk 0:00:19]} 29. Bd5+ {[%clk 0:00:39]}  Kg7 {[%clk 0:00:16]} 30. Rxe7+ {[%clk 0:00:38]}  Kh8 {[%clk 0:00:13]} 31. Qd2 {[%clk 0:00:36]}  Bg7 {[%clk 0:00:10]} 32. Rbe1 {[%clk 0:00:30]}  Qd6 {[%clk 0:00:09]} 33. R1e6 {[%clk 0:00:28]}  Ne5 {[%clk 0:00:07]} 34. Rxd6 {[%clk 0:00:25]}  Rxe7 {[%clk 0:00:08]} 35. Qg5 {[%clk 0:00:19]}  Ree8 {[%clk 0:00:06]} 36. Rxg6 {[%clk 0:00:16]}  Nxg6 {[%clk 0:00:00]} 37. Qxh5+ {[%clk 0:00:15]} 1-0


[Site "https://www.chess.com"]

[Event "Titled Tuesday Blitz July 25 Early 2023"]
[White "Pandey Srishti"]
[Black "Galiot, Goran"]
[WhiteFideId "35093290"]
[BlackFideId "931560"]
[WhiteElo "2419"]
[BlackElo "2552"]
[Result "0-1"]
[Round "6"]
[TimeControl "180+2"]
[Date "2023.07.25"]
[WhiteClock "0:00:55"]
[BlackClock "0:00:26"]
[Board "117"]

1. e4 {[%clk 0:03:00]}  c5 {[%clk 0:02:59]} 2. Nf3 {[%clk 0:03:00]}  e6 {[%clk 0:03:00]} 3. d4 {[%clk 0:02:59]}  cxd4 {[%clk 0:03:00]} 4. Nxd4 {[%clk 0:03:00]}  Nf6 {[%clk 0:03:01]} 5. Nc3 {[%clk 0:02:55]}  Nc6 {[%clk 0:03:01]} 6. Be3 {[%clk 0:02:48]}  Bb4 {[%clk 0:03:00]} 7. Nxc6 {[%clk 0:02:46]}  bxc6 {[%clk 0:03:00]} 8. e5 {[%clk 0:02:47]}  Nd5 {[%clk 0:03:00]} 9. Bd2 {[%clk 0:02:41]}  O-O {[%clk 0:02:39]} 10. Qg4 {[%clk 0:02:33]}  f5 {[%clk 0:02:15]} 11. exf6 {[%clk 0:02:31]}  Qxf6 {[%clk 0:02:14]} 12. Nxd5 {[%clk 0:01:55]}  Bxd2+ {[%clk 0:02:09]} 13. Kxd2 {[%clk 0:01:55]}  Qxf2+ {[%clk 0:02:02]} 14. Be2 {[%clk 0:01:55]}  cxd5 {[%clk 0:01:53]} 15. Raf1 {[%clk 0:01:55]}  Qc5 {[%clk 0:01:51]} 16. Rxf8+ {[%clk 0:01:49]}  Qxf8 {[%clk 0:01:50]} 17. Rf1 {[%clk 0:01:50]}  Qe7 {[%clk 0:01:46]} 18. Bd3 {[%clk 0:01:43]}  Bb7 {[%clk 0:01:28]} 19. h4 {[%clk 0:01:28]}  a5 {[%clk 0:01:12]} 20. h5 {[%clk 0:01:27]}  Qb4+ {[%clk 0:01:10]} 21. Qxb4 {[%clk 0:01:26]}  axb4 {[%clk 0:01:11]} 22. Ra1 {[%clk 0:01:22]}  e5 {[%clk 0:01:01]} 23. a4 {[%clk 0:01:21]}  e4 {[%clk 0:00:52]} 24. Be2 {[%clk 0:01:19]}  Kf7 {[%clk 0:00:51]} 25. b3 {[%clk 0:01:18]}  Ke7 {[%clk 0:00:48]} 26. Ke3 {[%clk 0:01:19]}  Rc8 {[%clk 0:00:45]} 27. a5 {[%clk 0:01:12]}  Rxc2 {[%clk 0:00:42]} 28. a6 {[%clk 0:01:11]}  Ba8 {[%clk 0:00:43]} 29. a7 {[%clk 0:01:12]}  Kd6 {[%clk 0:00:38]} 30. Ra6+ {[%clk 0:01:08]}  Ke5 {[%clk 0:00:38]} 31. Rb6 {[%clk 0:00:59]}  d4+ {[%clk 0:00:35]} 32. Kf2 {[%clk 0:00:59]}  d3 {[%clk 0:00:36]} 33. Rb5+ {[%clk 0:00:59]}  Kd6 {[%clk 0:00:27]} 34. Rb8 {[%clk 0:00:59]}  Rxe2+ {[%clk 0:00:26]} 35. Kf1 {[%clk 0:00:59]}  Bd5 {[%clk 0:00:26]} 36. a8=Q {[%clk 0:00:57]}  Bxa8 {[%clk 0:00:26]} 37. Rxa8 {[%clk 0:00:57]}  Rb2 {[%clk 0:00:25]} 38. Re8 {[%clk 0:00:58]}  Kd5 {[%clk 0:00:25]} 39. Re7 {[%clk 0:00:57]}  d6 {[%clk 0:00:26]} 40. Rxg7 {[%clk 0:00:56]}  e3 {[%clk 0:00:26]} 41. Rxh7 {[%clk 0:00:55]}  Rb1# {[%clk 0:00:26]} 0-1


[Site "https://www.chess.com"]

[Event "Titled Tuesday Blitz July 25 Early 2023"]
[White "Eggleston, Thomas A"]
[Black "To, Nhat Minh"]
[WhiteFideId "412139"]
[BlackFideId "729019"]
[WhiteElo "2400"]
[BlackElo "2540"]
[Result "1-0"]
[Round "6"]
[TimeControl "180+2"]
[Date "2023.07.25"]
[WhiteClock "0:00:07"]
[BlackClock "0:00:00"]
[Board "120"]

1. e4 {[%clk 0:03:00]}  c5 {[%clk 0:02:56]} 2. Nf3 {[%clk 0:03:00]}  d6 {[%clk 0:02:56]} 3. Bc4 {[%clk 0:03:01]}  Nf6 {[%clk 0:02:56]} 4. d3 {[%clk 0:03:01]}  Nc6 {[%clk 0:02:54]} 5. c3 {[%clk 0:02:58]}  e6 {[%clk 0:02:43]} 6. O-O {[%clk 0:02:57]}  a6 {[%clk 0:02:42]} 7. Bb3 {[%clk 0:02:54]}  Be7 {[%clk 0:02:42]} 8. Re1 {[%clk 0:02:53]}  O-O {[%clk 0:02:42]} 9. d4 {[%clk 0:02:53]}  cxd4 {[%clk 0:02:28]} 10. cxd4 {[%clk 0:02:53]}  e5 {[%clk 0:02:28]} 11. h3 {[%clk 0:02:49]}  Nd7 {[%clk 0:01:12]} 12. Nc3 {[%clk 0:02:41]}  exd4 {[%clk 0:01:11]} 13. Nxd4 {[%clk 0:02:41]}  Nc5 {[%clk 0:01:12]} 14. Nxc6 {[%clk 0:02:30]}  bxc6 {[%clk 0:01:13]} 15. Bc2 {[%clk 0:02:30]}  Bf6 {[%clk 0:01:09]} 16. Be3 {[%clk 0:02:23]}  Rb8 {[%clk 0:00:55]} 17. Bxc5 {[%clk 0:02:16]}  dxc5 {[%clk 0:00:55]} 18. e5 {[%clk 0:02:09]}  Be7 {[%clk 0:00:54]} 19. Qe2 {[%clk 0:02:01]}  g6 {[%clk 0:00:48]} 20. Bb3 {[%clk 0:01:58]}  Rb4 {[%clk 0:00:37]} 21. Rad1 {[%clk 0:01:26]}  Rd4 {[%clk 0:00:37]} 22. Rxd4 {[%clk 0:01:14]}  cxd4 {[%clk 0:00:38]} 23. Ne4 {[%clk 0:01:13]}  Qc7 {[%clk 0:00:14]} 24. f4 {[%clk 0:01:05]}  Kg7 {[%clk 0:00:14]} 25. Kh1 {[%clk 0:01:01]}  f5 {[%clk 0:00:13]} 26. Nd2 {[%clk 0:00:32]}  Bb4 {[%clk 0:00:12]} 27. Rd1 {[%clk 0:00:25]}  Rd8 {[%clk 0:00:11]} 28. e6 {[%clk 0:00:24]}  Be7 {[%clk 0:00:10]} 29. Nc4 {[%clk 0:00:23]}  Qxf4 {[%clk 0:00:09]} 30. Rxd4 {[%clk 0:00:20]}  Qxd4 {[%clk 0:00:07]} 31. Ne5 {[%clk 0:00:12]}  Qd6 {[%clk 0:00:02]} 32. Nf7 {[%clk 0:00:12]}  Qd2 {[%clk 0:00:01]} 33. Qe5+ {[%clk 0:00:11]}  Bf6 {[%clk 0:00:02]} 34. Qc7 {[%clk 0:00:07]}  Qc1+ {[%clk 0:00:00]} 35. Kh2 {[%clk 0:00:07]} 1-0


[Site "https://www.chess.com"]